fUSD/lending_fUSD_20240624
["ID","MTS","AMOUNT","RATE_DAILY","PERIOD"]
[330283320,1719227457844,-500.0,0.00019726,4]
[330283321,1719227457854,-1744.56,0.00019726,4]
[330283322,1719227457864,-1565.6,0.00019726,4]
[330283323,1719227457875,-524.33,0.00019726,4]
[330283324,1719227457884,-500.0,0.00019726,4]
[330283325,1719227457894,-500.0,0.00019726,4]
[330283326,1719227457904,-1536.65,0.00019726,4]
[330283327,1719227457914,-500.0,0.00019726,4]
[330283328,1719227457924,-500.0,0.00019726,4]
[330283329,1719227457934,-500.0,0.00019726,4]
[330283330,1719227457943,-500.0,0.00019726,4]
[330283331,1719227457954,-507.54,0.00019726,4]
[330283332,1719227457964,-692.84,0.00019726,4]
[330283333,1719227457974,-808.35,0.00019726,4]
[330283334,1719227457984,-1508.57,0.00019726,4]
[330283335,1719227457993,-500.0,0.00019726,4]
[330283336,1719227458003,-1240.27,0.00019726,4]
[330283337,1719227458012,-509.03,0.00019726,4]
[330283338,1719227458022,-297.28149,0.00019726,2]
[330283339,1719227458032,-297.28149,0.00019726,2]
[330283340,1719227458042,-297.28149,0.00019726,2]
[330283341,1719227458052,-500.0,0.00019726,4]
[330283342,1719227458062,-297.28149,0.00019726,2]
[330283343,1719227458072,-297.28149,0.00019726,2]
[330283344,1719227458081,-297.28149,0.00019726,2]
[330283345,1719227458092,-707.68,0.00019726,4]
[330283346,1719227458106,-500.0,0.00019726,4]
[330283347,1719227458116,-1220.18,0.00019726,4]
[330283348,1719227458125,-500.0,0.00019726,4]
[330283349,1719227458135,-1122.86,0.00019726,4]
[330283350,1719227458143,-500.0,0.00019726,4]
[330283351,1719227458154,-1252.44,0.00019726,4]
[330283352,1719227458164,-2357.18,0.00019726,4]
[330283353,1719227458175,-651.86,0.00019726,4]
[330283354,1719227458186,-500.0,0.00019726,4]
[330283355,1719227458197,-8542.86,0.00019726,4]
[330283356,1719227458207,-511.43,0.00019726,4]
[330283357,1719227458216,-500.0,0.00019726,4]
[330283358,1719227458225,-500.0,0.00019726,4]
[330283359,1719227458235,-4132.83,0.00019726,4]
[330283360,1719227458245,-1084.55,0.00019726,4]
[330283361,1719227458255,-4922.54,0.00019726,4]
[330283362,1719227458265,-735.24,0.00019726,4]
[330283363,1719227458275,-500.0,0.00019726,4]
[330283364,1719227458285,-758.45,0.00019726,4]
[330283365,1719227458294,-3180.72,0.00019726,4]
[330283366,1719227458304,-500.0,0.00019726,4]
[330283367,1719227458313,-500.0,0.00019726,4]
[330283368,1719227458324,-500.0,0.00019726,4]
[330283369,1719227458334,-1036.51,0.00019726,4]
[330283370,1719227458346,-500.0,0.00019726,4]
[330283371,1719227458355,-548.63,0.00019726,4]
[330283372,1719227458364,-500.0,0.00019726,4]
[330283373,1719227458374,-500.0,0.00019726,4]
[330283374,1719227458384,-500.0,0.00019726,4]
[330283375,1719227458393,-652.79,0.00019726,4]
[330283376,1719227458403,-904.18,0.00019726,4]
[330283377,1719227458413,-2267.53,0.00019726,4]
[330283378,1719227458422,-2983.38,0.00019726,4]
[330283379,1719227458432,-731.76,0.00019726,4]
[330283380,1719227458442,-1265.02,0.00019726,4]
[330283381,1719227458452,-1690.39,0.00019726,4]
[330283382,1719227458461,-722.24,0.00019726,4]
[330283383,1719227458472,-1208.06,0.00019726,4]
[330283384,1719227458482,-844.76,0.00019726,4]
[330283385,1719227458491,-1159.62,0.00019726,4]
[330283386,1719227458501,-657.83,0.00019726,4]
[330283387,1719227458511,-500.0,0.00019726,4]
[330283388,1719227458521,-1888.33,0.00019726,4]
[330283389,1719227458532,-1051.38,0.00019726,4]
[330283390,1719227458542,-500.0,0.00019726,4]
[330283391,1719227458552,-527.93,0.00019726,4]
[330283392,1719227458562,-1353.28,0.00019726,4]
[330283393,1719227458573,-762.37,0.00019726,4]
[330283394,1719227458584,-820.87,0.00019726,4]
[330283395,1719227458596,-2837.89,0.00019726,4]
[330283396,1719227458605,-500.0,0.00019726,4]
[330283397,1719227458614,-500.0,0.00019726,2]
[330283398,1719227458624,-500.0,0.00019726,4]
[330283399,1719227458633,-317.97511895,0.00019726,4]
[330283400,1719227458643,-500.0,0.00019726,4]
[330283401,1719227458653,-736.85,0.00019726,4]
[330283402,1719227458663,-1592.91915931,0.000198,2]
[330283403,1719227458673,-5148.19,0.0001981,4]
[330283404,1719227458682,-150.0,0.00019811,2]
[330283405,1719227458692,-151.049,0.00019811,2]
[330283406,1719227458701,-150.224,0.00019811,2]
[330283407,1719227458711,-252.946,0.00019811,2]
[330283408,1719227458721,-150.0,0.00019811,2]
[330283409,1719227458730,-156.251,0.00019811,2]
[330283410,1719227458740,-150.0,0.00019811,2]
[330283411,1719227458750,-150.0,0.00019811,2]
[330283412,1719227458760,-1655.0,0.00019811,2]
[330283413,1719227458770,-1830.0,0.00019811,2]
[330283414,1719227458780,-359.0,0.00019811,2]
[330283415,1719227458790,-1272.0,0.00019811,2]
[330283416,1719227458799,-443.0,0.00019811,2]
[330283417,1719227458809,-658.434,0.00019811,2]
[330283418,1719227458819,-166.439,0.00019811,2]
[330283419,1719227458829,-496.304,0.00019811,2]
[330283420,1719227458838,-812.0,0.00019811,2]
[330283421,1719227458852,-150.0,0.00019811,2]
[330283422,1719227458861,-2412.0,0.00019811,2]
[330283423,1719227458870,-1304.0,0.00019811,2]
[330283424,1719227458880,-547.0,0.00019811,2]
[330283425,1719227458893,-3201.0,0.00019811,2]
[330283426,1719227458903,-1984.0,0.00019811,2]
[330283427,1719227458913,-291.0,0.00019811,2]
[330283428,1719227458923,-5168.0,0.00019811,2]
[330283429,1719227458933,-5800.0,0.00019811,2]
[330283430,1719227458943,-38166.0,0.00019811,2]
[330283431,1719227458953,-1661.0,0.00019811,2]
[330283432,1719227458963,-1197.0,0.00019811,2]
[330283433,1719227458974,-1068.0,0.00019811,2]
[330283434,1719227458985,-200.0,0.00019839,2]
[330283435,1719227458996,-500.0,0.00019839,2]
[330283436,1719227459006,-200.0,0.00019839,2]
[330283437,1719227459016,-2776.13830779,0.00019847,2]
[330283438,1719227459026,-197.09674146,0.000199,2]
[330283439,1719227459036,-2883.6533784,0.0001991,2]
[330283440,1719227459046,-1370.56006701,0.00019923,2]
[330283441,1719227459056,-174.71,0.00019975,2]
[330283442,1719227459066,-5148.19,0.00019999,4]
[330283443,1719227459076,-5148.19,0.00019999,4]
[330283444,1719227459085,-151.0,0.00019999,2]
[330283445,1719227459104,-970.890068,0.00019999,2]
[330283446,1719227459116,-970.890073,0.00019999,2]
[330283447,1719227459126,-151.0,0.00019999,2]
[330283448,1719227459136,-538.933405,0.00019999,2]
[330283449,1719227459145,-538.933411,0.00019999,2]
[330283450,1719227459156,-345.118452,0.00019999,2]
[330283451,1719227459166,-345.118453,0.00019999,2]
[330283452,1719227459175,-237.05867,0.00019999,2]
[330283453,1719227459184,-237.058661,0.00019999,2]
[330283454,1719227459195,-151.0,0.00019999,2]
[330283455,1719227459205,-2509.026784,0.00019999,2]
[330283456,1719227459215,-2509.026779,0.00019999,2]
[330283457,1719227459225,-297.28149,0.00019999,2]
[330283458,1719227459235,-297.281483,0.00019999,2]
[330283459,1719227459245,-250000.0,0.0002,2]
[330283460,1719227459255,-3004.0,0.0002,2]
[330283461,1719227459266,-326.82157281,0.0002,2]
[330283462,1719227459276,-187.96812151,0.0002,2]
[330283463,1719227459286,-523.33,0.0002,4]
[330283464,1719227459297,-155.0,0.0002,2]
[330283465,1719227459307,-882.49,0.0002,4]
[330283466,1719227459316,-553.31,0.0002,4]
[330283467,1719227459327,-536.2,0.0002,4]
[330283468,1719227459338,-500.0,0.0002,4]
[330283469,1719227459350,-620.41,0.0002,4]
[330283470,1719227459359,-745.38,0.0002,4]
[330283471,1719227459368,-713.68,0.0002,4]
[330283472,1719227459378,-947.94,0.0002,4]
[330283473,1719227459387,-500.0,0.0002,4]
[330283474,1719227459397,-500.0,0.0002,4]
[330283475,1719227459407,-500.0,0.0002,4]
[330283476,1719227459417,-500.0,0.0002,4]
[330283477,1719227459427,-500.0,0.0002,4]
[330283478,1719227459437,-500.0,0.0002,4]
[330283479,1719227459446,-500.0,0.0002,4]
[330283480,1719227459456,-500.0,0.0002,4]
[330283481,1719227459466,-500.0,0.0002,4]
[330283482,1719227459476,-530.29,0.0002,4]
[330283483,1719227459486,-500.0,0.0002,4]
[330283484,1719227459495,-500.0,0.0002,4]
[330283485,1719227459506,-500.0,0.0002,4]
[330283486,1719227459515,-500.0,0.0002,4]
[330283487,1719227459527,-500.0,0.0002,4]
[330283488,1719227459537,-500.0,0.0002,4]
[330283489,1719227459547,-1473.52,0.0002,4]
[330283490,1719227459557,-500.0,0.0002,4]
[330283491,1719227459567,-500.0,0.0002,4]
[330283492,1719227459576,-500.0,0.0002,4]
[330283493,1719227459586,-500.0,0.0002,4]
[330283494,1719227459599,-500.0,0.0002,4]
[330283495,1719227459608,-587.58526721,0.0002,4]
[330283496,1719227459619,-1068.79,0.0002,4]
[330283497,1719227459628,-500.0,0.0002,4]
[330283498,1719227459638,-750.11,0.0002,4]
[330283499,1719227459648,-500.0,0.0002,4]
[330283500,1719227459657,-500.0,0.0002,4]
[330283501,1719227459667,-500.0,0.0002,4]
[330283502,1719227459677,-500.0,0.0002,4]
[330283503,1719227459686,-500.0,0.0002,4]
[330283504,1719227459696,-510.78,0.0002,4]
[330283505,1719227459707,-626.73,0.0002,4]
[330283506,1719227459716,-500.0,0.0002,4]
[330283507,1719227459726,-500.0,0.0002,4]
[330283508,1719227459736,-500.0,0.0002,4]
[330283509,1719227459745,-500.0,0.0002,4]
[330283510,1719227459755,-500.0,0.0002,4]
[330283511,1719227459940,-500.75292767,0.0002,4]
[330283512,1719227459950,-500.0,0.0002,4]
[330283513,1719227459959,-522.79,0.0002,4]
[330283514,1719227459969,-1714.53,0.0002,4]
[330283515,1719227459978,-578.47,0.0002,4]
[330283516,1719227459987,-500.0,0.0002,4]
[330283517,1719227459997,-585.27,0.0002,4]
[330283518,1719227460006,-874.46,0.0002,4]
[330283519,1719227460020,-500.0,0.0002,4]
[330283520,1719227460029,-500.0,0.0002,4]
[330283521,1719227460039,-533.54,0.0002,4]
[330283522,1719227460048,-1377.28,0.0002,4]
[330283523,1719227460057,-500.0,0.0002,4]
[330283524,1719227460067,-250.0,0.0002,4]
[330283525,1719227460076,-822.94,0.0002,4]
[330283526,1719227460086,-500.0,0.0002,4]
[330283527,1719227460105,-965.57,0.0002,4]
[330283528,1719227460114,-707.57,0.0002,4]
[330283529,1719227460128,-500.0,0.0002,4]
[330283530,1719227460140,-500.0,0.0002,4]
[330283531,1719227460151,-500.0,0.0002,4]
[330283532,1719227460160,-651.35,0.0002,4]
[330283533,1719227460170,-500.0,0.0002,4]
[330283534,1719227460180,-528.6,0.0002,4]
[330283535,1719227460190,-500.0,0.0002,4]
[330283536,1719227460199,-1322.51,0.0002,4]
[330283537,1719227460208,-500.0,0.0002,4]
[330283538,1719227460218,-1132.75,0.0002,4]
[330283539,1719227460227,-500.0,0.0002,4]
[330283540,1719227460236,-982.24,0.0002,4]
[330283541,1719227460246,-826.6,0.0002,4]
[330283542,1719227460255,-523.84,0.0002,4]
[330283543,1719227460264,-500.08,0.0002,4]
[330283544,1719227460274,-519.36,0.0002,4]
[330283545,1719227460283,-516.0,0.0002,4]
[330283546,1719227460292,-500.0,0.0002,4]
[330283547,1719227460302,-852.64,0.0002,4]
[330283548,1719227460311,-926.26,0.0002,4]
[330283549,1719227460320,-1257.17,0.0002,4]
[330283550,1719227460332,-1328.66,0.0002,4]
[330283551,1719227460346,-1171.93,0.0002,4]
[330283552,1719227460355,-533.85,0.0002,4]
[330283553,1719227460364,-500.0,0.0002,4]
[330283554,1719227460373,-500.0,0.0002,4]
[330283555,1719227460383,-500.0,0.0002,4]
[330283556,1719227460391,-165.87,0.0002,4]
[330283557,1719227460400,-500.0,0.0002,4]
[330283558,1719227460409,-500.0,0.0002,4]
[330283559,1719227460419,-540.82,0.0002,4]
[330283560,1719227460427,-500.0,0.0002,4]
[330283561,1719227460437,-859.12,0.0002,4]
[330283562,1719227460446,-500.0,0.0002,4]
[330283563,1719227460456,-500.0,0.0002,4]
[330283564,1719227460465,-500.0,0.0002,4]
[330283565,1719227460474,-153.63038229,0.0002,4]
[330283566,1719227460484,-500.0,0.0002,4]
[330283567,1719227460493,-500.0,0.0002,4]
[330283568,1719227460503,-500.0,0.0002,4]
[330283569,1719227460512,-500.0,0.0002,4]
[330283570,1719227460522,-500.0,0.0002,4]
[330283571,1719227460531,-500.0,0.0002,4]
[330283572,1719227460541,-565.0,0.0002,4]
[330283573,1719227460550,-636.52,0.0002,4]
[330283574,1719227460560,-500.0,0.0002,4]
[330283575,1719227460570,-2177.97,0.0002,4]
[330283576,1719227460580,-500.0,0.0002,4]
[330283577,1719227460594,-500.0,0.0002,4]
[330283578,1719227460608,-500.0,0.0002,4]
[330283579,1719227460617,-500.0,0.0002,4]
[330283580,1719227460626,-514.53,0.0002,4]
[330283581,1719227460635,-500.0,0.0002,4]
[330283582,1719227460645,-500.0,0.0002,4]
[330283583,1719227460654,-500.0,0.0002,4]
[330283584,1719227460663,-767.4,0.0002,4]
[330283585,1719227460672,-546.78,0.0002,4]
[330283586,1719227460681,-554.12,0.0002,4]
[330283587,1719227460690,-661.75,0.0002,4]
[330283588,1719227460699,-500.0,0.0002,4]
[330283589,1719227460708,-515.54,0.0002,4]
[330283590,1719227460717,-500.0,0.0002,4]
[330283591,1719227460726,-500.0,0.0002,4]
[330283592,1719227460735,-500.0,0.0002,4]
[330283593,1719227460744,-500.0,0.0002,4]
[330283594,1719227460753,-500.0,0.0002,4]
[330283595,1719227460762,-500.0,0.0002,4]
[330283596,1719227460772,-151.0,0.0002,2]
[330283597,1719227460781,-151.0,0.0002,2]
[330283598,1719227460790,-570.24,0.0002,4]
[330283599,1719227460799,-727.74,0.0002,4]
[330283600,1719227460809,-500.0,0.0002,4]
[330283601,1719227460818,-613.18,0.0002,4]
[330283602,1719227460828,-683.43,0.0002,4]
[330283603,1719227460837,-500.0,0.0002,4]
[330283604,1719227460853,-294.19172,0.0002,2]
[330283605,1719227460862,-537.24,0.0002,4]
[330283606,1719227460872,-767.2,0.0002,4]
[330283607,1719227460881,-713.85,0.0002,4]
[330283608,1719227460890,-500.0,0.0002,4]
[330283609,1719227460899,-500.0,0.0002,4]
[330283610,1719227460908,-500.0,0.0002,4]
[330283611,1719227460917,-500.0,0.0002,4]
[330283612,1719227460926,-500.0,0.0002,4]
[330283613,1719227460935,-500.0,0.0002,4]
[330283614,1719227460943,-500.0,0.0002,4]
[330283615,1719227460952,-682.05,0.0002,4]
[330283616,1719227460962,-671.32,0.0002,4]
[330283617,1719227460971,-500.0,0.0002,4]
[330283618,1719227460981,-500.0,0.0002,4]
[330283619,1719227460990,-500.0,0.0002,4]
[330283620,1719227460999,-617.07,0.0002,4]
[330283621,1719227461008,-685.33,0.0002,4]
[330283622,1719227461017,-500.0,0.0002,4]
[330283623,1719227461027,-500.0,0.0002,4]
[330283624,1719227461036,-500.0,0.0002,4]
[330283625,1719227461045,-517.48,0.0002,4]
[330283626,1719227461054,-509.08,0.0002,4]
[330283627,1719227461063,-500.0,0.0002,4]
[330283628,1719227461072,-500.0,0.0002,4]
[330283629,1719227461081,-500.0,0.0002,4]
[330283630,1719227461095,-500.0,0.0002,4]
[330283631,1719227461108,-500.0,0.0002,4]
[330283632,1719227461117,-500.0,0.0002,4]
[330283633,1719227461126,-500.0,0.0002,4]
[330283634,1719227461135,-500.0,0.0002,4]
[330283635,1719227461145,-500.0,0.0002,4]
[330283636,1719227461154,-670.93,0.0002,4]
[330283637,1719227461163,-521.91,0.0002,4]
[330283638,1719227461174,-630.83,0.0002,4]
[330283639,1719227461183,-500.0,0.0002,4]
[330283640,1719227461192,-500.0,0.0002,4]
[330283641,1719227461201,-725.26,0.0002,4]
[330283642,1719227461211,-1014.83,0.0002,4]
[330283643,1719227461220,-500.0,0.0002,4]
[330283644,1719227461228,-500.0,0.0002,4]
[330283645,1719227461237,-503.86,0.0002,4]
[330283646,1719227461247,-500.0,0.0002,4]
[330283647,1719227461256,-647.73,0.0002,4]
[330283648,1719227461265,-1099.95,0.0002,4]
[330283649,1719227461275,-500.0,0.0002,4]
[330283650,1719227461284,-521.47,0.0002,4]
[330283651,1719227461293,-500.0,0.0002,4]
[330283652,1719227461302,-500.0,0.0002,4]
[330283653,1719227461311,-510.53,0.0002,4]
[330283654,1719227461321,-2287.13,0.0002,4]
[330283655,1719227461331,-581.42,0.0002,4]
[330283656,1719227461343,-500.0,0.0002,4]
[330283657,1719227461352,-500.0,0.0002,4]
[330283658,1719227461361,-606.67,0.0002,4]
[330283659,1719227461371,-500.0,0.0002,4]
[330283660,1719227461380,-500.0,0.0002,4]
[330283661,1719227461389,-500.0,0.0002,4]
[330283662,1719227461398,-500.0,0.0002,4]
[330283663,1719227461408,-690.29,0.0002,4]
[330283664,1719227461417,-500.0,0.0002,4]
[330283665,1719227461426,-1691.07,0.0002,4]
[330283666,1719227461435,-500.0,0.0002,4]
[330283667,1719227461445,-500.0,0.0002,4]
[330283668,1719227461454,-500.0,0.0002,4]
[330283669,1719227461463,-592.13,0.0002,4]
[330283670,1719227461472,-500.0,0.0002,4]
[330283671,1719227461481,-547.8,0.0002,4]
[330283672,1719227461490,-524.89,0.0002,4]
[330283673,1719227461500,-557.89,0.0002,4]
[330283674,1719227461508,-723.74,0.0002,4]
[330283675,1719227461518,-1679.0,0.0002,4]
[330283676,1719227461527,-590.08,0.0002,4]
[330283677,1719227461537,-500.0,0.0002,4]
[330283678,1719227461546,-500.0,0.0002,4]
[330283679,1719227461555,-500.0,0.0002,4]
[330283680,1719227461564,-500.0,0.0002,4]
[330283681,1719227461574,-500.0,0.0002,4]
[330283682,1719227461583,-746.8,0.0002,4]
[330283683,1719227461594,-500.0,0.0002,4]
[330283684,1719227461603,-595.07,0.0002,4]
[330283685,1719227461613,-555.54,0.0002,4]
[330283686,1719227461622,-356.798257,0.0002,2]
[330283687,1719227461631,-1436.46,0.0002,4]
[330283688,1719227461641,-634.31,0.0002,4]
[330283689,1719227461650,-356.798257,0.0002,2]
[330283690,1719227461659,-356.798257,0.0002,2]
[330283691,1719227461667,-691.66,0.0002,4]
[330283692,1719227461677,-356.798261,0.0002,2]
[330283693,1719227461686,-500.0,0.0002,4]
[330283694,1719227461695,-500.0,0.0002,4]
[330283695,1719227461704,-715.78,0.0002,4]
[330283696,1719227461713,-587.85,0.0002,4]
[330283697,1719227461722,-500.0,0.0002,4]
[330283698,1719227461732,-582.73,0.0002,4]
[330283699,1719227461741,-500.0,0.0002,4]
[330283700,1719227461750,-500.0,0.0002,4]
[330283701,1719227461758,-500.0,0.0002,4]
[330283702,1719227461767,-714.51727598,0.0002,2]
[330283703,1719227461777,-500.0,0.0002,4]
[330283704,1719227461786,-507.58,0.0002,4]
[330283705,1719227461795,-500.0,0.0002,4]
[330283706,1719227461804,-500.0,0.0002,4]
[330283707,1719227461814,-547.47,0.0002,4]
[330283708,1719227461823,-649.26,0.0002,4]
[330283709,1719227461831,-500.0,0.0002,4]
[330283710,1719227461842,-649.11,0.0002,4]
[330283711,1719227461851,-500.0,0.0002,4]
[330283712,1719227461860,-1471.98,0.0002,4]
[330283713,1719227461869,-713.27,0.0002,4]
[330283714,1719227461878,-879.11,0.0002,4]
[330283715,1719227461886,-1444.26,0.0002,4]
[330283716,1719227461895,-1363.53,0.0002,4]
[330283717,1719227461904,-496.97748013,0.0002,4]
[330283718,1719227461913,-547.1,0.0002,4]
[330283719,1719227461922,-500.0,0.0002,4]
[330283720,1719227461931,-500.0,0.0002,4]
[330283721,1719227461940,-500.0,0.0002,4]
[330283722,1719227461949,-500.0,0.0002,4]
[330283723,1719227461958,-1534.65,0.0002,4]
[330283724,1719227461967,-500.0,0.0002,4]
[330283725,1719227461977,-500.0,0.0002,4]
[330283726,1719227461986,-4481.17,0.0002,4]
[330283727,1719227461995,-914.55,0.0002,4]
[330283728,1719227462004,-500.0,0.0002,4]
[330283729,1719227462013,-500.0,0.0002,4]
[330283730,1719227462022,-551.65,0.0002,4]
[330283731,1719227462032,-700.84,0.0002,4]
[330283732,1719227462041,-730.61,0.0002,4]
[330283733,1719227462051,-245.23,0.0002,4]
[330283734,1719227462060,-546.19,0.0002,4]
[330283735,1719227462070,-500.0,0.0002,4]
[330283736,1719227462079,-12080.04,0.0002,4]
[330283737,1719227462087,-505.61,0.0002,4]
[330283738,1719227462100,-593.86,0.0002,4]
[330283739,1719227462110,-821.74,0.0002,4]
[330283740,1719227462121,-646.22,0.0002,4]
[330283741,1719227462130,-1008.54,0.0002,2]
[330283742,1719227462140,-1400.06,0.0002,4]
[330283743,1719227462149,-1547.18,0.0002,4]
[330283744,1719227462158,-500.0,0.0002,4]
[330283745,1719227462167,-500.0,0.0002,4]
[330283746,1719227462177,-500.0,0.0002,4]
[330283747,1719227462188,-1251.17,0.0002,4]
[330283748,1719227462198,-704.2,0.0002,4]
[330283749,1719227462207,-670.95,0.0002,4]
[330283750,1719227462216,-500.0,0.0002,4]
[330283751,1719227462226,-2003.2,0.0002,4]
[330283752,1719227462235,-500.0,0.0002,4]
[330283753,1719227462244,-1071.8,0.0002,4]
[330283754,1719227462253,-662.98,0.0002,4]
[330283755,1719227462262,-908.91,0.0002,4]
[330283756,1719227462271,-500.0,0.0002,4]
[330283757,1719227462280,-700.85,0.0002,4]
[330283758,1719227462289,-500.0,0.0002,4]
[330283759,1719227462298,-729.51,0.0002,4]
[330283760,1719227462307,-810.58,0.0002,4]
[330283761,1719227462317,-1187.06,0.0002,4]
[330283762,1719227462328,-716.9,0.0002,4]
[330283763,1719227462337,-687.38,0.0002,4]
[330283764,1719227462352,-500.0,0.0002,4]
[330283765,1719227462361,-500.0,0.0002,4]
[330283766,1719227462370,-1135.05,0.0002,4]
[330283767,1719227462379,-1116.7,0.0002,4]
[330283768,1719227462391,-500.0,0.0002,4]
[330283769,1719227462401,-694.94,0.0002,4]
[330283770,1719227462411,-1545.37,0.0002,4]
[330283771,1719227462420,-547.63,0.0002,4]
[330283772,1719227462429,-2174.81,0.0002,4]
[330283773,1719227462439,-500.0,0.0002,4]
[330283774,1719227462449,-500.0,0.0002,4]
[330283775,1719227462459,-500.0,0.0002,4]
[330283776,1719227462468,-500.0,0.0002,4]
[330283777,1719227462477,-531.42,0.0002,4]
[330283778,1719227462487,-882.31,0.0002,4]
[330283779,1719227462496,-1322.53,0.0002,4]
[330283780,1719227462506,-752.85,0.0002,4]
[330283781,1719227462515,-500.0,0.0002,4]
[330283782,1719227462525,-500.0,0.0002,4]
[330283783,1719227462534,-2547.28,0.0002,4]
[330283784,1719227462544,-571.41027826,0.0002,4]
[330283785,1719227462554,-500.0,0.0002,4]
[330283786,1719227462563,-829.83,0.0002,4]
[330283787,1719227462572,-500.0,0.0002,4]
[330283788,1719227462582,-500.0,0.0002,4]
[330283789,1719227462595,-1744.56,0.0002,4]
[330283790,1719227462604,-1565.6,0.0002,4]
[330283791,1719227462614,-524.33,0.0002,4]
[330283792,1719227462623,-500.0,0.0002,4]
[330283793,1719227462632,-1536.65,0.0002,4]
[330283794,1719227462641,-500.0,0.0002,4]
[330283795,1719227462651,-500.0,0.0002,4]
[330283796,1719227462660,-500.0,0.0002,4]
[330283797,1719227462670,-500.0,0.0002,4]
[330283798,1719227462679,-507.54,0.0002,4]
[330283799,1719227462688,-692.84,0.0002,4]
[330283800,1719227462698,-808.35,0.0002,4]
[330283801,1719227462707,-500.0,0.0002,4]
[330283802,1719227462716,-1508.57,0.0002,4]
[330283803,1719227462725,-1240.27,0.0002,4]
[330283804,1719227462734,-509.03,0.0002,4]
[330283805,1719227462744,-500.0,0.0002,4]
[330283806,1719227462753,-707.68,0.0002,4]
[330283807,1719227462763,-500.0,0.0002,4]
[330283808,1719227462772,-1220.18,0.0002,4]
[330283809,1719227462782,-500.0,0.0002,4]
[330283810,1719227462791,-1122.86,0.0002,4]
[330283811,1719227462800,-500.0,0.0002,4]
[330283812,1719227462811,-1252.44,0.0002,4]
[330283813,1719227462820,-2357.18,0.0002,4]
[330283814,1719227462829,-651.86,0.0002,4]
[330283815,1719227462839,-500.0,0.0002,4]
[330283816,1719227462850,-8542.86,0.0002,4]
[330283817,1719227462859,-511.43,0.0002,4]
[330283818,1719227462869,-500.0,0.0002,4]
[330283819,1719227462878,-500.0,0.0002,4]